bitfinex/quotes_ETHUSD_20240729
["timestamp","ask_amount","ask_price","bid_price","bid_amount"]
[1722278718280,2.3855,3320.1,3319.6,3.0124]
[1722278718629,1.53336598,3320.0,3319.6,3.0124]
[1722278719754,1.53336598,3320.0,3319.4,3.01258]
[1722278719755,1.53336598,3320.0,3319.4,3.01253]
[1722278719964,1.53336598,3320.0,3319.6,3.0124]
[1722278720161,1.53336598,3320.0,3319.9,3.01213]
[1722278720342,1.53336598,3320.2,3319.9,3.01213]
[1722278720551,1.53336598,3320.1,3319.9,3.01213]
[1722278720719,3.32719511,3320.4,3319.9,3.01213]
[1722278720924,1.53314401,3320.3,3320.0,3.01204]
[1722278721123,1.53314401,3320.3,3320.1,3.0119]
[1722278721562,1.53314401,3320.3,3320.2,3.01186]
[1722278723476,1.53314401,3320.3,3320.0,3.01201]
[1722278723680,2.48053912,3320.3,3320.0,3.01201]
[1722278723888,1.53314401,3320.2,3320.0,3.01201]
[1722278725817,1.53314401,3320.2,3320.1,6.0239]
[1722278725946,0.94739511,3320.4,3320.2,3.01186]
[1722278726150,1.53301578,3320.3,3320.2,3.01186]
[1722278726571,1.53301578,3320.3,3320.2,6.08395487]
[1722278726897,1.53301578,3320.3,3320.1,2.671]
[1722278726898,0.94739511,3320.7,3320.5,3.01151]
[1722278727182,1.53287148,3320.6,3320.5,6.0231]
[1722278727399,1.58034165,3321.1,3320.8,3.01132]
[1722278727400,0.94739511,3320.9,3320.8,3.01132]
[1722278727682,2.48012264,3321.0,3320.8,3.01132]
[1722278727879,1.53272753,3320.9,3320.8,3.01132]
[1722278728445,1.53272753,3320.9,3320.6,3.0115]
[1722278728642,1.53272753,3320.9,3320.4,3.01165]
[1722278728643,1.90705914,3320.9,3320.4,3.01165]
[1722278728889,3.24379511,3320.7,3320.0,3.01204]
[1722278729067,1.53272753,3320.6,3320.2,3.01179]
[1722278729278,2.48012264,3320.6,3320.2,3.01179]
[1722278729605,2.48012264,3320.6,3320.0,3.01198]
[1722278729606,1.53272753,3320.5,3319.9,3.01213]
[1722278729803,1.53272753,3320.5,3320.0,3.01204]
[1722278729804,2.01037979,3320.5,3320.0,3.01204]
[1722278729966,1.53272753,3320.4,3320.0,3.01204]
[1722278730175,1.53272753,3320.4,3320.1,3.01195]
[1722278730370,0.94739511,3320.6,3319.9,3.01207]
[1722278730371,1.53272753,3320.3,3319.9,3.01207]
[1722278730571,0.94762459,3320.6,3320.0,3.01202]
[1722278730572,0.94762459,3320.5,3320.0,3.01202]
[1722278730810,1.53301738,3320.4,3320.0,3.01202]
[1722278731018,2.48064197,3320.4,3320.0,3.01202]
[1722278731201,2.48064197,3320.3,3320.0,3.01202]
[1722278731397,1.53301738,3320.2,3320.0,3.01202]
[1722278731920,0.94762459,3320.4,3320.0,3.01202]
[1722278731921,0.04551616,3320.1,3320.0,3.01202]
[1722278732120,0.94768939,3320.4,3320.0,3.01202]
[1722278732418,1.57992284,3320.3,3320.0,3.01202]
[1722278732632,1.53306314,3320.2,3320.0,3.01202]
[1722278732987,0.04681356,3320.1,3320.0,3.01202]
[1722278733180,1.5798767,3320.1,3320.0,3.01202]
[1722278733823,0.04681356,3320.1,3320.0,3.01202]
[1722278734168,0.04681356,3320.1,3319.8,3.01221]
[1722278734169,1.53308491,3320.1,3319.4,3.01255]
[1722278734283,2.72895665,3320.0,3319.5,6.01248]
[1722278734480,1.57980964,3319.9,3319.5,6.01248]
[1722278734683,1.53308491,3319.8,3319.5,6.01248]
[1722278735229,0.04682637,3319.7,3319.5,6.01248]
[1722278735585,1.19587174,3320.0,3319.5,6.01248]
[1722278735786,0.0468033,3319.6,3319.5,6.01248]
[1722278735983,1.19587174,3320.0,3319.2,3.01273]
[1722278736239,0.04677486,3319.6,3319.3,3.01267]
[1722278736529,1.57995179,3319.5,3319.3,3.01267]
[1722278736699,0.04669748,3319.5,3319.3,3.01268]
[1722278736905,3.22919773,3319.8,3319.3,0.06024631]
[1722278737123,1.58006779,3319.7,3319.5,3.01249]
[1722278737322,1.53336978,3319.6,3319.4,3.01258]
[1722278737537,0.04665185,3319.5,3319.4,3.01258]
[1722278737971,3.22919773,3319.8,3319.4,3.01258]
[1722278738273,0.04665185,3319.5,3319.4,3.01258]
[1722278738415,3.22919773,3319.8,3319.4,3.01258]
[1722278738615,0.04665185,3319.5,3319.4,3.01258]
[1722278738844,3.22925625,3319.8,3319.4,3.01258]
[1722278739168,1.53334484,3319.7,3319.4,3.01258]
[1722278739310,1.58004285,3319.7,3319.4,3.01258]
[1722278739512,1.53334484,3319.6,3319.3,0.06024631]
[1722278739713,1.53334484,3319.6,3319.2,3.0127]
[1722278739714,0.04665185,3319.5,3319.2,3.0127]
[1722278739970,1.53334484,3319.4,3319.2,3.0127]
[1722278740422,0.04661706,3319.3,3318.7,3.0]
[1722278740738,0.04661706,3319.3,3318.4,2.4862]
[1722278740739,4.94719675,3319.2,3318.4,3.01349]
[1722278740914,1.57986483,3319.1,3318.4,3.01349]
[1722278741113,2.03271651,3319.0,3318.4,3.01349]
[1722278741314,1.57981866,3318.9,3318.4,3.01349]
[1722278741511,1.53334484,3318.8,3318.4,3.01349]
[1722278741752,1.53334484,3318.8,3318.2,3.01367]
[1722278741753,0.04642764,3318.7,3318.2,3.01367]
[1722278742256,1.53384688,3318.6,3317.6,3.01419]
[1722278742482,1.53384688,3318.6,3317.0,3.01477]
[1722278742483,0.94795191,3318.4,3317.0,3.01477]
[1722278742759,2.52772689,3318.3,3317.3,3.01446]
[1722278742974,4.54752688,3318.2,3317.3,3.01446]
[1722278743115,4.54752688,3318.2,3316.9,4.9678]
[1722278743116,1.53384688,3318.1,3317.4,3.01434]
[1722278743320,1.57966488,3318.0,3317.5,3.0143]
[1722278743514,0.045818,3318.0,3317.5,3.0143]
[1722278743746,0.94731904,3318.4,3317.6,3.01415]
[1722278743909,0.04573799,3317.9,3317.4,3.01436]
[1722278744109,8.31731904,3318.3,3317.2,3.01457]
[1722278744315,2.4434,3318.0,3317.2,3.01457]
[1722278744571,1.57993403,3317.9,3317.0,3.01475]
[1722278744809,0.04564928,3317.9,3317.0,3.01475]
[1722278745187,1.48904928,3318.0,3317.1,3.01466]
[1722278745369,0.04405737,3317.8,3317.1,3.01466]
[1722278745581,0.04409551,3317.9,3317.2,3.0]
[1722278745771,0.04404931,3317.7,3317.2,3.0]
[1722278746100,0.04407593,3317.8,3317.2,3.0]
[1722278746307,0.04403567,3317.7,3316.9,3.01485]
[1722278746783,0.04403567,3317.7,3317.0,3.01471]
[1722278747397,3.01404,3317.8,3317.0,3.01471]
[1722278747572,0.04391992,3317.6,3317.0,3.01471]
[1722278747762,0.04394302,3317.7,3317.1,3.01466]
[1722278747961,0.04389681,3317.5,3317.1,3.01466]
[1722278748175,0.04391992,3317.6,3317.1,3.01466]
[1722278748397,1.48904928,3318.0,3317.1,3.01466]
[1722278748398,0.0438737,3317.4,3317.1,3.01466]
[1722278748585,0.04389681,3317.5,3317.3,3.01449]
[1722278748767,3.0137,3318.2,3317.3,3.01449]
[1722278748768,7.37,3318.3,3317.3,3.01449]
[1722278748964,10.38363,3318.3,3317.5,3.01431]
[1722278749422,7.37,3318.3,3317.5,3.01431]
[1722278749706,7.37,3318.3,3317.7,3.01407]
[1722278750063,7.37,3318.3,3317.5,3.01431]
[1722278750288,0.46032035,3318.2,3317.5,3.01431]
[1722278750512,3.01365,3318.3,3317.5,3.01431]
[1722278751405,3.01365,3318.3,3317.4,3.0144]
[1722278751785,5.2953,3318.4,3317.5,3.01425]
[1722278752169,2.2818,3318.4,3317.5,3.01425]
[1722278752507,5.2818,3318.4,3317.6,3.01421]
[1722278752857,0.04418313,3318.3,3317.7,3.07435204]
[1722278753110,0.04418313,3318.3,3317.9,3.01389]
[1722278753606,0.04418313,3318.3,3318.0,3.01385]
[1722278753787,0.04418313,3318.3,3317.7,3.01407]
[1722278753963,0.04418313,3318.3,3317.9,3.01388]
[1722278754361,0.04418313,3318.3,3317.8,3.01403]
[1722278756065,0.04418313,3318.3,3318.0,3.01384]
[1722278756273,0.04418313,3318.3,3318.1,3.01371]
[1722278756700,7.37,3318.7,3318.1,3.01371]
[1722278756980,7.37,3318.7,3318.4,3.01348]
[1722278757303,0.04248825,3318.6,3317.9,3.01391]
[1722278757807,0.04248825,3318.6,3317.8,3.01404]
[1722278758159,3.05580825,3318.6,3317.8,3.01404]
[1722278759263,3.05580825,3318.6,3317.6,3.01421]
[1722278759264,0.04248825,3318.6,3317.7,3.01407]
[1722278759465,3.05580825,3318.6,3317.8,3.01403]
[1722278759728,0.04248825,3318.6,3317.9,3.01389]
[1722278760975,0.04248825,3318.6,3318.0,3.01384]
[1722278761786,0.04248825,3318.6,3318.2,3.01359]
[1722278761987,0.04248825,3318.6,3318.4,3.01348]
[1722278762374,7.37,3319.0,3318.5,0.06027021]
[1722278762565,0.04243042,3318.9,3318.8,6.02625]
[1722278762795,9.7158,3319.4,3319.0,3.01288]
[1722278762973,0.04246974,3318.9,3318.8,6.02625]
[1722278763299,9.7158,3319.4,3318.8,3.01312]
[1722278763527,0.04264187,3318.9,3318.8,3.01312]
[1722278763744,9.7158,3319.4,3318.8,3.01312]
[1722278763952,0.04278219,3319.3,3318.8,3.01312]
[1722278764110,3.05547219,3319.3,3318.4,3.01343]
[1722278764313,3.05547219,3319.3,3318.2,3.01365]
[1722278764627,3.01295,3319.0,3318.2,3.01365]
[1722278764931,0.0427186,3318.9,3318.2,3.01365]
[1722278765120,9.7158,3319.4,3317.9,3.0]
[1722278765317,9.7158,3319.4,3318.8,3.01312]
[1722278765318,0.04281094,3319.3,3318.8,3.01312]
[1722278765519,0.04281094,3319.3,3319.0,3.01287]
[1722278765812,0.04281094,3319.3,3318.3,2.4792]
[1722278765813,0.04281094,3319.3,3319.1,3.01279]
[1722278766027,0.04281094,3319.3,3318.9,3.01302]
[1722278766449,0.04281094,3319.3,3319.1,3.01285]
[1722278766750,7.37,3319.7,3319.1,3.01285]
[1722278766937,0.04298025,3319.6,3319.2,3.01277]
[1722278767277,7.37,3320.0,3319.4,3.01253]
[1722278767406,7.37,3320.0,3318.5,1.5]
[1722278767407,7.37,3320.0,3319.7,3.01231]
[1722278767733,7.37,3320.0,3319.5,3.07274396]
[1722278767734,7.37,3320.0,3319.1,2.3441]
[1722278767937,7.37,3320.0,3319.5,3.01242]
[1722278768145,7.37,3320.0,3319.5,3.07266396]
[1722278768750,7.37,3320.0,3319.5,0.06024396]
[1722278769052,7.37,3320.0,3319.1,5.35692]
[1722278769053,7.37,3320.0,3319.7,3.01223]
[1722278769355,7.37,3320.0,3319.6,3.0124]
[1722278769801,9.835,3320.4,3319.5,0.06024398]
[1722278770001,7.37,3320.7,3319.8,3.01221]
[1722278770248,7.37,3320.7,3320.0,3.01196]
[1722278770452,3.01151,3320.6,3319.6,3.01238]
[1722278770620,3.01174,3320.4,3319.6,3.01238]
[1722278771646,1.038151,3320.5,3319.7,3.01225]
[1722278771824,4.049741,3320.5,3319.7,3.01231]
[1722278772209,4.049741,3320.5,3319.5,3.01245]
[1722278772447,3.01183,3320.3,3319.5,3.01245]
[1722278772669,0.7061571,3320.3,3319.4,3.0]
[1722278772833,0.7061571,3320.3,3319.7,3.0123]
[1722278773011,0.7061571,3320.3,3319.1,2.3441]
[1722278773349,0.7061571,3320.3,3319.5,3.01246]
[1722278773549,3.7179371,3320.3,3319.5,3.01246]
[1722278773773,3.7179371,3320.3,3319.2,3.01268]
[1722278773774,0.67296371,3320.2,3319.4,3.01259]
[1722278774084,2.3458,3320.1,3319.1,2.3441]
[1722278774222,2.3458,3320.1,3319.4,3.01252]
[1722278775236,2.3458,3320.1,3319.0,3.01293]
[1722278775237,3.01205,3320.0,3319.0,3.01293]
[1722278775432,3.0125,3319.5,3318.1,6.95354]
[1722278775629,3.01233,3319.7,3318.1,3.9398]
[1722278775630,0.30125,3319.4,3318.1,3.9398]
[1722278775822,7.37,3319.8,3319.0,3.01286]
[1722278775823,10.38223,3319.8,3319.0,3.01286]
[1722278776023,2.4605,3319.9,3319.1,3.01285]
[1722278776024,5.47265,3319.9,3319.1,3.01285]
[1722278776532,3.01223,3319.8,3319.0,3.01294]
[1722278778033,0.04343903,3319.7,3319.0,3.01294]
[1722278778234,0.04343903,3319.7,3318.8,3.01312]
[1722278778235,3.05576903,3319.7,3318.8,3.01312]
[1722278778472,0.6067999,3319.6,3318.9,3.01304]
[1722278778981,0.6067999,3319.6,3319.0,3.01294]
[1722278778982,0.04340479,3319.5,3319.0,3.01294]
[1722278779657,2.4605,3319.9,3319.0,3.01294]
[1722278779847,0.04338171,3319.4,3319.2,3.01276]
[1722278780162,0.04335863,3319.3,3319.0,3.01294]
[1722278780493,0.547257,3319.8,3319.0,3.01294]
[1722278780647,0.04333554,3319.2,3319.1,3.01286]
[1722278780981,0.547257,3319.8,3319.1,3.01286]
[1722278781188,0.04345096,3319.7,3319.1,3.01286]
[1722278782259,0.64978776,3319.7,3319.1,3.01286]
[1722278785344,0.64978776,3319.7,3318.9,3.01304]
[1722278785345,0.64978776,3319.7,3318.9,3.01298]
[1722278786480,0.64978776,3319.7,3319.0,3.01295]
[1722278786645,0.04345096,3319.7,3319.1,3.01286]
[1722278787036,2.4605,3319.9,3319.1,3.01286]
[1722278787240,0.04316017,3319.6,3319.1,3.01286]
[1722278787485,2.4605,3319.9,3319.1,3.01286]
[1722278787638,0.04314221,3319.5,3319.1,3.01286]
[1722278787844,5.47264,3319.9,3319.1,3.01286]
[1722278788044,0.04309472,3319.4,3319.1,3.01286]
[1722278788345,0.04307973,3319.3,3319.1,3.01286]
[1722278788599,2.4605,3319.9,3319.3,3.01262]
[1722278788897,0.04316726,3319.8,3319.5,3.01244]
[1722278789062,0.04316726,3319.8,3319.7,3.01232]
[1722278789575,0.04316726,3319.8,3319.6,3.07265291]
[1722278789576,0.04327615,3319.8,3319.6,3.01234]
[1722278789798,7.37,3320.1,3319.6,3.01234]
[1722278790097,0.04332746,3320.0,3319.6,3.01234]
[1722278790971,0.04332746,3320.0,3319.5,3.01249]
[1722278791286,0.04332746,3320.0,3319.7,3.01226]
[1722278791687,0.04332746,3320.0,3319.9,3.01213]
[1722278793577,0.04332746,3320.0,3319.9,6.02426]
[1722278794715,0.04332746,3320.0,3319.9,3.01213]
[1722278795315,3.01164,3320.5,3319.7,3.01228]
[1722278795478,0.04352658,3320.0,3319.6,3.01239]
[1722278795679,1.339314,3320.4,3319.6,3.01239]
[1722278795926,0.04352706,3319.9,3319.1,3.01282]
[1722278796076,3.01205,3320.0,3319.1,3.01282]
[1722278796287,0.04350398,3319.8,3319.1,3.01282]
[1722278796482,3.313255,3320.0,3319.1,3.01282]
[1722278796483,0.04347138,3319.9,3319.1,3.01282]
[1722278796827,1.57687658,3319.8,3319.1,3.01282]
[1722278797120,2.3932,3319.5,3318.8,3.01311]
[1722278797366,2.3932,3319.5,3319.0,3.01294]
[1722278797481,0.04329536,3319.4,3319.0,3.01294]
[1722278797818,0.04329536,3319.4,3318.8,3.01304]
[1722278798020,0.04329536,3319.4,3318.6,3.01329]
[1722278798021,0.2869449,3319.4,3318.6,3.01329]
[1722278798179,1.53361473,3319.3,3318.3,3.0135]
[1722278798478,0.04311062,3319.2,3319.0,3.01295]
[1722278798677,0.04311062,3319.2,3318.8,3.01306]
[1722278798881,5.40575,3319.5,3318.5,3.01337]
[1722278799079,0.04308753,3319.1,3318.7,3.01317]
[1722278799278,3.76519554,3319.5,3318.7,3.01317]
[1722278799487,0.04309081,3319.0,3318.9,3.01298]
[1722278799692,3.76519554,3319.5,3318.8,3.01313]
[1722278799901,0.04306961,3319.0,3318.8,3.01313]
[1722278800220,3.76519554,3319.5,3318.9,3.01301]
[1722278800420,1.53362056,3319.4,3319.1,3.01282]
[1722278800603,8.31420537,3319.6,3319.1,3.01282]
[1722278800604,7.37,3319.6,3319.1,3.01282]
[1722278800803,7.37,3319.6,3319.3,3.01266]
[1722278800804,1.53350102,3319.5,3319.3,3.01266]
[1722278801010,7.37,3319.6,3319.3,3.01266]
[1722278801406,7.37,3319.6,3319.1,5.68385]
[1722278801407,1.53345285,3319.5,3319.1,3.01285]
[1722278801593,7.37,3319.6,3319.3,3.01265]
[1722278801823,7.37,3319.6,3319.5,3.0125]
[1722278802913,0.94420537,3320.2,3319.5,2.671]
[1722278803086,1.5332448,3320.1,3319.7,3.01227]
[1722278803291,1.5332448,3320.0,3319.7,3.01227]
[1722278803488,1.5332448,3319.9,3319.7,3.01227]
[1722278803687,10.64333038,3320.3,3319.7,3.01227]
[1722278803916,10.64333038,3320.3,3319.5,3.01246]
[1722278803917,2.05260175,3320.2,3319.5,3.01246]
[1722278804120,1.53325643,3320.1,3319.5,3.01246]
[1722278804591,2.47828681,3320.1,3319.3,3.01262]
[1722278804954,2.47828681,3320.0,3319.4,3.01259]
[1722278805119,1.77938582,3320.2,3319.4,3.01259]
[1722278805120,1.53325643,3319.9,3319.4,3.01259]
[1722278805319,1.53325643,3319.8,3319.4,3.01259]
[1722278805562,3.01196,3320.1,3319.4,3.01259]
[1722278805563,1.53325643,3319.7,3319.4,3.01259]
[1722278805757,0.94503038,3320.0,3319.4,3.01259]
[1722278806064,1.53333809,3319.9,3319.4,3.01259]
[1722278806845,1.53333809,3319.8,3319.4,3.01259]
[1722278807043,1.53333809,3319.7,3319.4,3.01259]
[1722278807229,1.53333809,3319.6,3319.2,3.01269]
[1722278807428,1.53333809,3319.5,3319.2,3.01269]
[1722278807636,0.94597942,3319.9,3319.2,3.01269]
[1722278807833,1.53335639,3319.8,3319.2,3.01269]
[1722278808041,1.53335639,3319.8,3319.4,3.01253]
[1722278808239,0.04195939,3319.7,3319.4,3.01253]
[1722278808435,1.53335639,3319.6,3319.4,3.01253]
[1722278808687,1.53335639,3319.5,3319.4,3.01253]
[1722278808825,1.57526962,3319.5,3319.4,3.01253]
[1722278809238,1.57526962,3319.5,3319.4,6.02512]
[1722278809835,0.04191323,3319.5,3319.4,6.02512]
[1722278810044,0.94597942,3320.0,3319.8,3.01214]
[1722278810308,12.53732616,3320.3,3319.8,3.01214]
[1722278810309,1.53322619,3319.9,3319.8,3.01214]
[1722278810630,1.53322619,3320.1,3319.8,3.01214]
[1722278810956,1.53322619,3320.0,3319.8,3.01214]
[1722278811166,1.53322619,3319.9,3319.6,3.01235]
[1722278811462,1.53322619,3319.8,3319.7,3.01232]
[1722278811632,1.53322619,3319.8,3319.5,3.01248]
[1722278811832,1.53322619,3319.7,3319.5,3.01248]
[1722278812077,1.53322619,3319.6,3319.5,3.01248]
[1722278812363,1.53322619,3319.8,3319.3,3.01267]
[1722278812587,1.53322619,3319.8,3319.6,3.01241]
[1722278812807,1.53322619,3319.8,3319.4,3.01259]
[1722278812808,1.90727734,3319.8,3319.4,3.01259]
[1722278813092,1.53322619,3319.7,3319.6,3.01241]
[1722278813311,0.94597942,3319.9,3319.6,3.01241]
[1722278813312,1.53322619,3319.8,3319.6,3.01241]
[1722278813449,1.53322619,3319.7,3319.4,3.01253]
[1722278813646,1.53322619,3319.6,3319.4,3.01253]
[1722278813861,1.53322619,3319.5,3319.4,3.01253]
[1722278814060,2.47920561,3319.8,3319.4,3.01253]
[1722278814263,1.53322619,3319.7,3319.4,3.01253]
[1722278814688,1.53322619,3319.7,3319.5,3.01248]
[1722278814846,1.53322619,3319.6,3319.4,3.01253]
[1722278815047,1.53322619,3319.5,3319.4,3.01253]
[1722278815301,1.5333212,3319.8,3319.5,3.01243]
[1722278815454,0.94597942,3319.9,3319.6,3.01235]
[1722278815455,1.53331309,3319.7,3319.6,3.01235]
[1722278815650,0.94597942,3319.9,3319.6,3.01235]
[1722278815651,1.53331309,3319.8,3319.6,3.01235]
[1722278815909,1.53331309,3319.7,3319.6,3.01235]
[1722278816066,1.53331309,3319.9,3319.6,3.01235]
[1722278816415,1.53331309,3319.8,3319.6,3.01235]
[1722278816902,1.53331309,3319.8,3319.7,6.02464]
[1722278817059,0.94523926,3320.0,3319.7,6.02464]
[1722278817060,1.53317275,3319.9,3319.8,3.01222]
[1722278817252,1.53316507,3320.0,3319.8,3.01222]
[1722278817503,1.53316507,3319.9,3319.8,6.02444]
[1722278817717,1.53314233,3320.0,3319.9,3.01213]
[1722278817871,1.53314233,3320.0,3319.9,6.02426]
[1722278817872,1.5331367,3320.0,3319.9,6.02426]
[1722278818199,8.63031902,3320.3,3320.2,3.01186]
[1722278818200,8.31523926,3320.3,3320.2,3.01186]
[1722278818407,8.90305828,3320.3,3320.2,3.01186]
[1722278819464,8.90305828,3320.3,3320.2,9.09581573]
[1722278819465,1.53305828,3320.3,3320.2,9.09581573]
[1722278819705,0.94523926,3320.9,3320.8,3.01132]
[1722278819964,0.94552132,3321.1,3320.9,3.01123]
[1722278820208,1.53270981,3321.0,3320.7,3.01139]
[1722278820408,2.47823113,3321.0,3320.7,3.01139]
[1722278820711,2.47823113,3321.0,3320.6,0.06022228]
[1722278820712,1.53270981,3320.9,3320.8,3.01132]
[1722278821043,1.53270981,3321.0,3320.8,3.01132]
[1722278821237,1.53270981,3320.9,3320.6,3.01142]
[1722278821438,1.53270981,3320.8,3320.7,3.01134]
[1722278821600,0.94552132,3321.2,3321.0,3.01108]
[1722278821804,1.53272694,3321.1,3321.0,6.02228]
[1722278822120,12.17,3321.4,3321.2,3.01095]
[1722278822328,1.53258115,3321.3,3321.2,3.01095]
[1722278822702,12.17,3321.4,3321.0,3.01107]
[1722278822902,1.53254621,3321.3,3320.8,5.68229]
[1722278823155,1.53254621,3321.3,3321.0,3.01109]
[1722278823156,1.57405838,3321.3,3321.0,3.01109]
[1722278823314,0.04151217,3321.3,3321.0,3.01109]
[1722278823521,0.04151217,3321.3,3320.8,5.68229]
[1722278823716,1.53260962,3321.2,3320.8,5.68229]
[1722278823958,1.57417935,3321.2,3320.9,3.01123]
[1722278824262,0.04156973,3321.2,3320.9,3.01123]
[1722278824488,6.37,3321.5,3320.9,3.01123]
[1722278824649,6.37,3321.5,3320.3,2.3051]
[1722278824650,0.04154882,3321.1,3321.0,2.42802008]
[1722278824993,6.37,3321.5,3321.0,2.42802008]
[1722278825195,6.37,3321.5,3321.0,8.45029008]
[1722278825196,0.04154882,3321.1,3321.0,8.45029008]
[1722278825404,6.37,3321.5,3321.2,3.0109]
[1722278825753,0.04161166,3321.4,3321.2,3.0109]
[1722278826418,0.04161166,3321.4,3321.3,3.01086]
[1722278827105,0.04161166,3321.4,3321.1,3.01098]
[1722278827252,0.04161166,3321.4,3321.1,0.06021451]
[1722278827637,0.04161166,3321.4,3320.9,3.0112]
[1722278829489,0.04161166,3321.4,3321.0,3.01113]
[1722278829865,0.04161166,3321.4,3320.8,5.6823]
[1722278830065,0.68277283,3321.4,3320.7,3.0114]
[1722278830399,0.68277283,3321.4,3320.8,3.01131]
[1722278830573,0.68277283,3321.4,3320.6,2.3563]
[1722278830780,0.68277283,3321.4,3320.7,3.01141]
[1722278831573,0.68277283,3321.4,3320.8,3.01131]
[1722278831777,0.68277283,3321.4,3320.9,3.01122]
[1722278832096,0.04161166,3321.4,3321.0,0.06021978]
[1722278832300,0.04161166,3321.4,3321.2,3.01095]
[1722278832599,0.04161166,3321.4,3321.0,0.06021978]
[1722278832600,0.04161166,3321.4,3321.0,3.07127978]
[1722278832895,0.04161166,3321.4,3321.1,3.01104]
[1722278833194,0.04161166,3321.4,3321.2,3.01094]
[1722278833379,0.04161166,3321.4,3320.8,2.671]
[1722278833380,0.04161166,3321.4,3321.3,3.01086]
[1722278833575,0.04161166,3321.4,3321.1,3.01098]
[1722278833805,0.04161166,3321.4,3321.0,3.01113]
[1722278833806,0.04161166,3321.4,3321.2,3.01095]
[1722278834151,0.04161166,3321.4,3321.0,6.0222]
[1722278834393,0.04161166,3321.4,3321.1,3.01104]
[1722278834698,0.04161166,3321.4,3320.8,2.671]
[1722278835052,0.04161166,3321.4,3321.1,3.01102]
[1722278835263,0.04161166,3321.4,3321.1,3.01103]
[1722278836706,9.38033,3321.9,3321.1,3.01103]
[1722278836877,0.04169821,3321.3,3321.1,3.01103]
[1722278837261,3.01033,3321.9,3321.1,3.01103]
[1722278837461,0.04167515,3321.2,3321.1,3.01103]
[1722278837700,6.37,3321.8,3321.1,3.01103]
[1722278837864,0.04167515,3321.2,3321.1,3.01103]
[1722278838069,6.37,3321.8,3321.1,3.01103]
[1722278838391,0.04167515,3321.2,3321.1,3.01103]
[1722278838617,6.37,3321.8,3320.9,3.01115]
[1722278839195,3.05231178,3321.7,3320.9,3.01115]
[1722278839361,0.04180178,3321.7,3321.0,3.01112]
[1722278839975,0.98401496,3321.7,3321.0,3.01112]
[1722278840204,0.98401496,3321.7,3320.9,3.01115]
[1722278840386,0.98401496,3321.7,3320.6,2.3563]
[1722278840387,0.98401496,3321.7,3320.7,3.01138]
[1722278840565,0.98401496,3321.7,3320.4,2.671]
[1722278840566,3.01105,3321.1,3320.4,3.01168]
[1722278840764,0.301105,3321.0,3320.4,3.01162]
[1722278840972,0.04165176,3321.0,3320.6,3.01149]
[1722278841166,0.04165176,3321.0,3320.8,3.0113]
[1722278841401,0.04165176,3321.0,3320.9,3.01123]
[1722278841563,2.4746,3321.3,3320.9,3.01123]
[1722278841767,0.0416254,3321.0,3320.7,3.01134]
[1722278842014,3.35906,3321.3,3320.7,3.01134]
[1722278842179,0.04160234,3320.9,3320.7,3.01134]
[1722278842512,0.04157927,3320.8,3320.7,3.01134]
[1722278842763,2.4746,3321.3,3320.7,3.01134]
[1722278843056,6.37,3321.4,3320.9,3.01114]
[1722278843338,6.37,3321.4,3320.8,2.73121955]
[1722278843339,6.37,3321.4,3321.2,3.01088]
[1722278843539,2.3261,3321.9,3321.2,3.01088]
[1722278843540,8.6961,3321.9,3321.2,3.01088]
[1722278843952,8.6961,3321.9,3321.3,3.01086]
[1722278844148,8.6961,3321.9,3321.1,3.01098]
[1722278844441,8.6961,3321.9,3321.1,0.06021465]
[1722278845555,8.6961,3321.9,3321.2,3.0109]
[1722278846250,3.01009,3322.2,3321.8,3.01033]
[1722278846251,6.37,3322.2,3321.8,3.01033]
[1722278846553,2.406,3322.3,3321.8,3.01033]
[1722278847236,2.406,3322.3,3321.4,3.01075]
[1722278847437,3.0102,3322.1,3321.0,3.01106]
[1722278847638,2.406,3322.3,3320.5,2.3018]
[1722278847639,3.01056,3321.7,3320.5,2.3018]
[1722278847961,4.543281,3321.6,3320.6,3.01147]
[1722278848143,2.406,3321.4,3320.6,3.01147]
[1722278848455,2.406,3321.4,3320.6,3.01149]
[1722278848758,5.4168,3321.4,3320.5,3.01158]
[1722278848916,0.54168,3321.3,3320.7,3.01135]
[1722278849351,2.406,3321.4,3320.7,3.01135]
[1722278849713,2.406,3321.4,3320.5,3.01159]
[1722278849714,5.41678,3321.4,3320.5,3.01159]
[1722278849919,1.53280981,3321.3,3320.5,3.01159]
[1722278850374,3.0111,3321.1,3320.3,3.01174]
[1722278850727,2.4676,3320.9,3320.1,3.01192]
[1722278850937,2.4676,3320.9,3319.9,5.31392]
[1722278850938,3.01548,3320.9,3320.2,3.01186]
[1722278851498,3.01548,3320.9,3320.4,3.01167]
[1722278851688,2.4676,3320.9,3320.4,3.01167]
[1722278852335,2.4676,3320.9,3320.1,3.01193]
[1722278852838,2.4676,3320.9,3319.8,2.671]
[1722278852839,3.01151,3320.6,3319.8,2.671]
[1722278853040,3.01151,3320.6,3319.8,3.01222]
[1722278853364,0.0400851,3320.5,3319.8,3.01222]
[1722278855144,0.0400851,3320.5,3319.6,5.31857]
[1722278855361,0.0400851,3320.5,3319.9,3.01207]
[1722278855539,0.94378948,3320.8,3320.0,3.01199]
[1722278855856,0.04004312,3320.4,3320.0,3.01199]
[1722278856056,3.95510948,3320.8,3320.0,3.01199]
[1722278856230,0.03972607,3320.3,3320.0,3.01199]
[1722278856445,3.01141,3320.7,3319.9,3.01207]
[1722278856753,1.53307729,3320.6,3320.0,3.01204]
[1722278856928,1.57287256,3320.6,3320.0,3.01204]
[1722278857127,0.03979527,3320.6,3320.1,3.01195]
[1722278857578,2.3562,3320.5,3320.0,3.01203]
[1722278857871,2.39595562,3320.5,3320.1,3.01195]
[1722278858252,2.39595562,3320.5,3320.2,3.01184]
[1722278860678,2.39595562,3320.5,3320.0,3.07227424]
[1722278860880,1.53308672,3320.4,3319.8,3.01219]
[1722278861056,0.03970949,3320.3,3319.8,3.01219]
[1722278861237,0.03970949,3320.3,3319.9,3.01213]
[1722278861438,2.3562,3320.5,3319.9,3.01213]